bitfinex-derivatives/quotes_ETHF0:USTF0_20250116
["timestamp","ask_amount","ask_price","bid_price","bid_amount"]
[1737066593837,4.6157376,3291.9,3291.8,7.69255425]
[1737066594044,5.2233776,3291.9,3291.8,1e-08]
[1737066594740,5.2233776,3291.9,3291.6,8.35266639]
[1737066594741,0.60768,3291.7,3291.6,8.35266639]
[1737066594943,0.60768,3291.7,3291.6,4.59811639]
[1737066595136,0.60768,3291.7,3290.7,14.06596367]
[1737066595137,0.60782,3290.9,3290.8,21.04150042]
[1737066595338,4.6157376,3290.9,3290.6,4.59811639]
[1737066595536,0.60785,3290.8,3290.6,4.59811639]
[1737066596040,2.3078688,3290.9,3290.7,3.04293078]
[1737066596238,2.3078688,3290.9,3290.8,3.65077078]
[1737066596432,2.3078688,3291.6,3290.8,1.04293078]
[1737066596631,2.3078688,3291.6,3290.7,4.8291]
[1737066596632,3.50214342,3291.0,3290.7,3.6281]
[1737066596844,4.67371694,3291.3,3291.2,0.60777]
[1737066597138,0.07371694,3291.3,3291.2,1.65070078]
[1737066597534,0.07371694,3291.3,3291.2,42.45070078]
[1737066598340,2.3078688,3291.4,3291.3,0.60775]
[1737066598642,2.3078688,3291.4,3291.3,4.85848078]
[1737066599544,2.3078688,3291.4,3291.3,1.65068078]
[1737066599938,2.3078688,3291.4,3291.3,4.08268078]
[1737066600944,2.3078688,3291.4,3291.3,5.28368078]
[1737066601141,2.3078688,3291.6,3291.4,0.60773]
[1737066601340,2.3078688,3291.6,3291.5,0.60771]
[1737066601543,2.3078688,3291.6,3291.5,1.65064078]
[1737066602535,2.3078688,3291.6,3291.5,1.04293078]
[1737066603545,2.3078688,3291.6,3291.5,1.65064078]
[1737066608145,2.3078688,3291.6,3291.5,2.85164078]
[1737066608647,2.3078688,3291.6,3291.5,2.24393078]
[1737066608851,0.60765,3291.9,3291.5,2.24393078]
[1737066609146,0.60765,3291.9,3291.8,1.04293078]
[1737066610550,1.3091,3292.1,3291.8,1.04293078]
[1737066610753,0.60762,3292.0,3291.9,1.2845]
[1737066611142,0.60762,3292.0,3291.6,1.201]
[1737066611346,0.60762,3292.0,3291.6,1.80869]
[1737066611548,3.2078,3291.9,3291.6,1.80869]
[1737066611742,3.2078,3291.9,3291.6,1.201]
[1737066611949,2.3078688,3292.0,3291.9,0.60764]
[1737066612156,2.3078688,3292.0,3291.9,3.81544]
[1737066612344,2.3078688,3292.3,3292.2,0.60758]
[1737066612542,2.3078688,3292.3,3292.2,1.80858]
[1737066612849,2.3078688,3292.6,3292.5,0.60753]
[1737066613449,2.32143833,3292.8,3292.3,3.2078]
[1737066613649,2.3078688,3292.9,3292.4,1.51885]
[1737066613851,2.3078688,3292.9,3292.8,0.60747]
[1737066614853,5.5156688,3293.2,3292.7,3.2078]
[1737066615060,5.5156688,3293.2,3293.1,0.60742]
[1737066615356,5.5156688,3293.2,3293.1,42.63042]
[1737066615758,2.3078688,3293.2,3293.1,42.63042]
[1737066616057,3.2078,3293.6,3293.1,42.023]
[1737066616551,3.2078,3293.6,3293.5,0.60734]
[1737066619567,2.3078688,3294.0,3293.8,0.60729]
[1737066619861,2.3078688,3294.0,3293.9,1.223]
[1737066620561,2.9151188,3294.0,3293.9,1.223]
[1737066621652,2.3078688,3294.0,3293.9,1.223]
[1737066622777,2.9151188,3294.0,3293.9,1.223]
[1737066623776,0.6073,3293.8,3293.4,1.2555]
[1737066624077,3.2078,3293.7,3293.6,0.60732]
[1737066624277,3.2078,3293.7,3293.5,1.83033]
[1737066624573,3.2078,3293.7,3293.6,0.60733]
[1737066624775,3.2078,3293.7,3293.6,1.83033]
[1737066625172,3.2078,3293.7,3293.6,1.223]
[1737066625379,3.2078,3293.7,3293.6,1.83033]
[1737066626176,3.2078,3293.7,3293.6,1.223]
[1737066626567,3.2078,3293.7,3292.6,2.3078688]
[1737066626568,5.5156688,3293.7,3292.6,2.3078688]
[1737066626776,2.9152388,3293.4,3293.0,0.60743]
[1737066626967,2.9152388,3293.4,3293.1,0.60741]
[1737066627167,1.2125,3293.6,3293.0,1.223]
[1737066627366,1.2125,3293.6,3292.8,1.2182]
[1737066627367,0.6074,3293.2,3292.7,0.60749]
[1737066627571,1.90113,3293.1,3292.7,0.60749]
[1737066627767,1.2125,3293.0,3292.7,0.60749]
[1737066628266,3.2078,3292.8,3292.6,1.223]
[1737066628474,0.60749,3292.7,3292.6,1.223]
[1737066628674,5.5156688,3292.8,3291.8,1.2947]
[1737066628871,3.81539,3292.2,3291.9,1.223]
[1737066629073,1.2125,3292.1,3291.9,1.223]
[1737066629273,1.2125,3292.1,3292.0,40.8]
[1737066629772,1.8201,3292.1,3292.0,40.8]
[1737066629975,1.8201,3292.1,3291.0,3.8017]
[1737066629976,1.2125,3292.1,3291.0,3.8017]
[1737066630282,1.2125,3292.1,3291.1,13.98]
[1737066630283,2.3078688,3291.5,3291.1,13.98]
[1737066630480,1.217,3291.4,3291.1,13.98]
[1737066630670,4.4202,3291.3,3291.1,13.98]
[1737066631376,4.4202,3291.3,3291.1,1.223]
[1737066631377,2.9156388,3291.2,3291.1,1.223]
[1737066631981,2.3078688,3291.2,3290.7,1.223]
[1737066632481,0.60783,3290.9,3290.7,1.223]
[1737066632689,0.6078,3291.1,3290.8,0.60784]
[1737066632983,3.2078,3290.9,3290.6,42.023]
[1737066633279,3.2078,3290.9,3290.7,0.60785]
[1737066633683,3.2078,3290.9,3290.6,42.63087]
[1737066633883,3.81563,3290.9,3290.6,42.023]
[1737066634183,3.2078,3290.9,3290.6,42.63088]
[1737066635379,3.2078,3290.9,3290.6,42.023]
[1737066635581,3.2078,3290.9,3290.6,42.63087]
[1737066635785,3.2078,3290.9,3290.7,0.60786]
[1737066636082,3.2078,3290.9,3290.6,42.63087]
[1737066636285,3.2078,3290.9,3290.6,42.023]
[1737066636483,3.2078,3290.9,3290.7,0.60786]
[1737066637077,3.2078,3290.9,3290.6,42.023]
[1737066637278,3.2078,3290.9,3290.6,42.63088]
[1737066637478,3.2078,3290.9,3290.6,42.023]
[1737066637678,3.2078,3290.9,3290.6,42.63087]
[1737066638974,3.2078,3290.9,3290.6,42.023]
[1737066639179,3.81563,3290.9,3290.6,42.023]
[1737066639779,0.60786,3290.7,3290.6,42.023]
[1737066639983,3.2078,3290.9,3290.6,42.023]
[1737066640185,0.60784,3290.8,3290.6,42.023]
[1737066640493,0.60786,3290.7,3290.6,42.023]
[1737066641980,5.5156688,3290.9,3289.9,1.2921]
[1737066642288,3.2078,3290.3,3290.0,1.83198]
[1737066642493,3.2078,3290.3,3290.1,40.8]
[1737066642977,3.2078,3290.3,3290.0,1.83198]
[1737066643172,3.2078,3290.3,3290.0,1.224]
[1737066643378,0.60796,3290.2,3290.0,42.024]
[1737066644179,6.1236088,3290.3,3290.0,42.63198]
[1737066644379,0.60795,3290.2,3290.0,42.63198]
[1737066644777,6.1236188,3290.3,3290.0,42.63198]
[1737066644984,5.5156688,3290.3,3290.0,42.63198]
[1737066645289,0.60795,3290.2,3290.0,42.63198]
[1737066645486,5.5156688,3290.3,3290.0,40.8]
[1737066645487,0.60797,3290.1,3290.0,40.8]
[1737066645689,5.5156688,3290.3,3290.0,40.8]
[1737066645889,0.60796,3290.2,3290.0,40.8]
[1737066646482,6.1236088,3290.3,3290.0,41.40798]
[1737066646684,0.60796,3290.2,3290.0,40.8]
[1737066646986,6.1236088,3290.3,3290.1,0.60796]
[1737066647490,5.5156688,3290.3,3290.1,0.60796]
[1737066647786,6.1236188,3290.3,3290.0,41.40797]
[1737066647990,3.2078,3290.3,3290.0,40.8]
[1737066648190,6.1235988,3290.3,3290.1,0.60795]
[1737066648489,5.5156688,3290.3,3290.1,0.60796]
[1737066648687,5.5156688,3290.3,3290.0,40.8]
[1737066648992,5.5156688,3290.3,3290.2,0.60795]
[1737066649391,5.5156688,3290.3,3290.1,0.60797]
[1737066649593,6.1236188,3290.3,3290.1,0.60797]
[1737066649785,6.1236188,3290.3,3290.2,0.60795]
[1737066650494,3.2078,3290.3,3290.2,0.60795]
[1737066651793,2.3078688,3290.6,3290.5,0.6079]
[1737066652185,0.60796,3290.2,3290.0,41.40798]
[1737066652891,0.60796,3290.2,3290.0,40.8]
[1737066653190,5.5156688,3290.3,3289.8,2.609]
[1737066653392,0.60798,3290.1,3289.9,0.608]
[1737066653603,0.608,3290.0,3289.8,44.01702]
[1737066653898,3.2078,3289.9,3289.8,44.01702]
[1737066654985,3.2078,3289.9,3289.7,0.60804]
[1737066655783,3.2078,3289.9,3289.6,1.218]
[1737066655989,3.2078,3289.9,3289.7,0.60804]
[1737066656592,3.2078,3289.9,3289.7,1.2932]
[1737066656797,0.60803,3289.8,3289.7,1.2932]
[1737066656998,0.60803,3289.8,3289.1,1.52037]
[1737066656999,3.2078,3289.9,3288.4,3.2078]
[1737066657199,2.3078688,3289.2,3288.9,1.2479]
[1737066657391,2.3078688,3289.2,3289.1,0.60815]
[1737066659696,2.3078688,3289.2,3289.0,1.2713]
[1737066659895,2.3078688,3289.2,3289.0,1.87946]
[1737066660095,2.3078688,3289.2,3289.1,1.218]
[1737066660399,2.3078688,3289.2,3289.1,1.82616]
[1737066666303,4.6157376,3289.2,3289.1,1.82616]
[1737066667500,4.6157376,3289.2,3289.1,1.218]
[1737066668493,4.6157376,3289.2,3289.0,3.09747]
[1737066668700,3.81596,3289.1,3289.0,1.218]
[1737066669307,3.2078,3289.1,3288.5,2.5356]
[1737066669609,3.2078,3289.1,3288.2,1.88141]
[1737066669610,0.60825,3288.6,3288.2,1.88141]
[1737066669806,7.8235376,3288.3,3287.9,40.8]
[1737066670010,7.8235376,3288.3,3287.9,0.60837]
[1737066670011,2.3078688,3288.0,3287.9,0.60837]
[1737066670202,2.3078688,3288.0,3287.5,5.7243]
[1737066670400,2.3078688,3287.6,3287.5,6.33275]
[1737066671409,2.3078688,3287.6,3287.5,5.7243]
[1737066672208,2.3078688,3287.6,3287.5,4.4258]
[1737066672397,2.3078688,3287.6,3287.5,3.2078]
[1737066672597,2.3078688,3287.6,3287.3,2.4855]
[1737066672805,2.3078688,3287.6,3287.4,0.60846]
[1737066673009,2.3078688,3287.6,3287.5,0.60845]
[1737066673208,2.3078688,3287.4,3287.3,1.87599]
[1737066673405,2.3078688,3287.6,3287.3,1.87599]
[1737066673613,2.3078688,3287.6,3287.5,0.60845]
[1737066685216,2.3078688,3287.6,3287.4,1.90776]
[1737066685513,3.2078,3287.5,3287.4,1.90776]
[1737066686513,3.2078,3287.5,3287.4,1.2993]
[1737066686713,3.2078,3287.5,3287.4,1.90777]
[1737066686913,3.2078,3287.5,3287.4,1.2993]
[1737066687118,3.81625,3287.5,3287.4,1.2993]
[1737066687420,3.2078,3287.5,3287.4,1.2993]
[1737066687615,3.2078,3287.5,3286.5,1.52159]
[1737066687818,3.2078,3287.5,3286.2,44.30920679]
[1737066687819,4.6157376,3286.9,3286.2,44.30920679]
[1737066688016,7.8235376,3286.3,3284.9,10.75045401]
[1737066688319,3.2078,3285.4,3285.0,0.60891]
[1737066688524,3.2078,3285.4,3284.9,9.48103383]
[1737066688818,3.81664,3285.4,3284.9,9.48103383]
[1737066689018,3.2078,3285.4,3285.2,4.74207789]
[1737066689217,5.2245976,3285.3,3285.2,4.74207789]
[1737066690318,4.6157376,3285.3,3285.2,4.74207789]
[1737066690518,4.6157376,3285.3,3285.2,5.35095789]
[1737066691221,4.6157376,3285.3,3285.2,0.60888]
[1737066691520,4.6157376,3285.3,3284.7,2.73942]
[1737066691721,4.6157376,3284.8,3284.7,1.82597]
[1737066692120,4.6157376,3284.8,3284.7,42.62597]
[1737066693225,4.6157376,3284.8,3284.7,41.40897]
[1737066693427,4.6157376,3284.8,3284.7,42.62597]
[1737066694125,4.70406742,3284.8,3284.7,42.62597]
[1737066694520,4.70406742,3284.8,3282.2,11.73265288]
[1737066694521,3.2078,3283.9,3282.2,11.73265288]
[1737066694829,8.52115742,3283.0,3282.9,2.43420909]
[1737066695129,7.91186742,3283.0,3282.9,2.43420909]
[1737066695322,10.76526555,3283.0,3282.9,2.43420909]
[1737066696024,6.67048813,3283.0,3282.9,2.43420909]
[1737066696424,6.67048813,3283.0,3282.6,40.8]
[1737066696624,2.85339813,3282.7,3281.4,14.117]
[1737066696815,8.91459626,3282.1,3281.4,12.782]
[1737066697015,8.91459626,3282.1,3282.0,42.09813288]
[1737066697224,8.91459626,3282.1,3282.0,0.00213288]
[1737066697417,8.91459626,3282.1,3282.0,1.29813288]
[1737066698023,8.91459626,3282.1,3281.0,0.95422386]
[1737066698328,5.70679626,3281.1,3281.0,0.95422386]
[1737066698530,2.85339813,3279.9,3279.8,0.60988]
[1737066698820,5.70679626,3280.0,3279.7,3.2078]
[1737066699023,3.2078,3279.9,3279.4,1.296]
[1737066699219,8.91459626,3279.5,3279.0,3.2078]
[1737066699420,5.70679626,3279.1,3278.5,10.83403383]
[1737066699623,8.91459626,3279.1,3278.5,9.48103383]
[1737066699825,8.91459626,3279.1,3278.2,0.61016]
[1737066700130,5.70679626,3278.6,3278.3,1.353]
[1737066700333,5.70679626,3278.6,3277.3,3.81814]
[1737066700334,3.46354813,3278.4,3277.3,3.81814]
[1737066700625,5.70679626,3277.4,3277.3,3.2078]
[1737066700828,5.70679626,3277.4,3277.1,7.08684419]
[1737066701025,3.2078,3277.2,3277.1,7.08684419]
[1737066701216,5.70679626,3277.4,3275.7,3.2078]
[1737066701420,5.70679626,3275.8,3275.3,3.2078]
[1737066701615,3.2078,3276.5,3275.3,3.2078]
[1737066701616,5.70679626,3275.4,3275.3,3.2078]
[1737066701819,5.70679626,3275.4,3275.2,1.353]
[1737066702020,8.91459626,3275.4,3274.8,4.5608]
[1737066702320,2.81637131,3274.9,3274.8,3.2078]
[1737066702515,3.2078,3275.4,3274.8,3.2078]
[1737066702717,1.353,3276.8,3274.8,8.2078]
[1737066702718,0.21258813,3274.9,3274.8,8.2078]
[1737066702919,3.2078,3276.3,3274.8,44.0078]
[1737066703123,1.2156,3277.5,3274.8,44.0078]
[1737066703124,2.85339813,3276.1,3275.5,3.2078]
[1737066703427,2.85339813,3276.1,3274.8,45.8]
[1737066703428,3.30915714,3275.9,3275.0,4.6188]
[1737066703625,3.30915714,3277.0,3276.7,0.61046]
[1737066703825,0.00915714,3277.0,3276.9,0.61042]
[1737066704027,3.3060685,3277.6,3277.2,0.61036]
[1737066704226,3.3060685,3277.6,3277.5,40.8]
[1737066705026,0.0060685,3277.6,3277.5,40.8]
[1737066706028,0.0060685,3277.6,3277.5,41.41031]
[1737066706225,0.0060685,3277.6,3277.5,40.8]
[1737066707033,0.0060685,3277.6,3276.9,0.6104]
[1737066707233,3.2078,3277.0,3276.9,0.6104]
[1737066709133,3.2078,3277.5,3277.4,0.61033]
[1737066709934,0.61033,3277.4,3276.4,0.6105]
[1737066710128,3.2078,3276.5,3275.7,3.2078]
[1737066710627,3.2078,3276.5,3276.4,0.61051]
[1737066710931,3.2078,3276.5,3276.2,1.412]
[1737066711133,3.2078,3276.5,3276.4,0.61051]
[1737066711327,3.2078,3276.5,3275.7,3.2078]
[1737066711527,3.2078,3276.5,3276.3,0.61053]
[1737066711727,3.2078,3276.5,3275.8,42.212]
[1737066711928,3.2078,3276.5,3276.2,0.61054]
[1737066712127,3.2078,3276.5,3275.8,42.212]
[1737066712328,3.2078,3276.5,3276.2,0.61054]
[1737066712933,3.2078,3276.5,3275.9,0.61061]
[1737066713233,3.2078,3276.5,3276.2,0.61054]
[1737066714027,3.2078,3276.5,3276.0,0.61057]
[1737066714232,3.2078,3276.5,3276.1,0.61056]
[1737066714834,3.2078,3276.5,3276.2,2.02254]
[1737066716421,3.2078,3276.5,3276.2,1.412]
[1737066716629,3.2078,3276.5,3276.2,0.61054]
[1737066716828,3.2078,3276.5,3276.2,1.412]
[1737066717135,3.2078,3276.5,3276.3,0.61053]
[1737066717528,3.2078,3276.5,3276.2,1.412]
[1737066717929,3.2078,3276.5,3276.2,2.02255]
[1737066718130,3.2078,3276.5,3276.4,0.00945784]
[1737066718828,3.81829,3276.5,3276.4,0.00945784]
[1737066719029,3.2078,3276.5,3276.4,0.00945784]
[1737066719934,3.81829,3276.5,3276.4,0.00945784]
[1737066720326,3.2078,3276.5,3275.8,1.413]
[1737066720531,3.2078,3275.9,3275.8,2.02363]
[1737066723134,3.2078,3276.3,3275.8,1.413]
[1737066723337,3.2078,3276.3,3276.2,0.61055]
[1737066725944,3.2078,3276.8,3276.7,0.61046]
[1737066726237,3.2078,3276.8,3276.7,2.02346]
[1737066726840,3.2078,3278.0,3277.9,0.61023]
[1737066727639,2.85998852,3278.8,3278.6,0.61009]
[1737066727640,6.06778852,3278.8,3278.6,0.61009]
[1737066727833,3.2078,3278.8,3277.9,0.61023]
[1737066728039,3.2078,3278.8,3277.8,3.2078]
[1737066728040,3.2078,3278.8,3278.0,1.52555]
[1737066728433,3.2078,3278.8,3277.8,3.2078]
[1737066728636,3.2078,3278.8,3278.7,0.61009]
[1737066729743,3.2078,3279.4,3278.4,1.413]
[1737066730132,3.2078,3279.4,3279.3,0.60997]
[1737066732146,3.2078,3279.4,3278.9,1.52512]
[1737066732343,3.2078,3279.4,3279.3,0.60997]
[1737066734248,3.81766,3280.0,3279.3,1.52494]
[1737066734451,3.2078,3280.0,3279.3,1.52494]
[1737066734751,3.2078,3280.0,3279.9,0.60986]
[1737066735450,3.2078,3280.0,3279.8,0.60987]
[1737066735645,3.2078,3280.0,3279.9,0.60986]
[1737066735845,3.2078,3280.0,3279.8,0.60987]
[1737066736052,3.81766,3280.0,3279.8,0.60987]
[1737066736648,3.2078,3280.0,3279.2,1.391]
[1737066736954,0.60988,3279.8,3279.6,0.60991]
[1737066737146,3.2078,3280.0,3279.2,1.391]
[1737066737347,3.2078,3279.6,3278.8,1.391]
[1737066737548,3.2078,3279.6,3278.1,1.3295]
[1737066737549,0.61008,3278.8,3278.2,0.61018]
[1737066737745,0.61011,3278.6,3278.4,0.61013]
[1737066737943,0.61021,3278.1,3277.9,2.00122]
[1737066738145,0.61018,3278.2,3277.8,2.00124]
[1737066738348,3.2078,3278.3,3277.8,1.391]
[1737066738555,3.2078,3278.3,3278.2,0.61018]
[1737066738855,3.2078,3278.3,3277.9,1.391]
[1737066739055,3.2078,3278.3,3278.1,0.6102]
[1737066739262,3.2078,3278.3,3277.9,1.391]
[1737066739463,3.2078,3278.3,3278.2,0.61018]
[1737066739659,0.61013,3278.5,3278.2,0.61018]
[1737066740054,1.3966,3278.6,3277.9,1.391]
[1737066740359,0.61017,3278.3,3278.1,0.6102]
[1737066740561,0.61015,3278.4,3278.1,0.6102]
[1737066741058,0.61015,3278.4,3278.1,0.61019]
[1737066741257,3.2078,3278.3,3277.9,1.391]
[1737066741461,3.81796,3278.3,3278.0,0.61022]
[1737066741654,1.3966,3278.6,3277.9,1.391]
[1737066741849,1.3966,3278.6,3277.4,44.0078]
[1737066742057,0.61018,3278.2,3277.8,0.61024]
[1737066742257,0.61018,3278.2,3277.8,0.61025]
[1737066742454,3.2078,3278.3,3277.4,3.2078]
[1737066742660,3.2078,3278.3,3277.9,1.391]
[1737066742856,0.61022,3278.0,3277.9,1.391]
[1737066743060,3.2078,3278.3,3277.9,1.391]
[1737066743261,0.61021,3278.1,3277.9,1.391]
[1737066743462,0.61019,3278.2,3277.9,1.391]
[1737066743672,0.6102,3278.1,3277.9,1.391]
[1737066744066,3.2078,3278.3,3277.9,1.391]
[1737066744260,3.2078,3279.2,3278.6,0.6101]
[1737066744457,0.61003,3279.1,3278.8,0.61006]
[1737066744664,2.32143833,3279.0,3278.8,0.61006]
[1737066745259,2.32143833,3279.0,3278.9,0.61005]
[1737066746165,3.2078,3279.2,3278.7,1.391]
[1737066746366,3.2078,3279.2,3279.1,0.61001]
[1737066747872,1.91755,3279.5,3279.2,0.60998]
[1737066748069,3.2078,3279.6,3278.7,1.391]
[1737066748265,3.2078,3279.6,3279.5,0.60994]
[1737066750059,0.60987,3279.9,3279.5,0.60994]
[1737066750258,6.81765,3280.0,3279.5,1.391]
[1737066750465,6.81765,3280.0,3279.6,0.60991]
[1737066750666,0.60986,3279.9,3279.6,0.60991]
[1737066750867,6.81765,3280.0,3279.7,0.6099]
[1737066751069,6.2078,3280.0,3279.8,0.60987]
[1737066751268,6.81764,3280.0,3279.7,0.60989]
[1737066751571,6.2078,3280.0,3279.8,0.60987]
[1737066751965,6.2078,3280.0,3279.5,1.391]
[1737066752475,6.2078,3280.0,3279.9,0.60986]
[1737066752768,6.2078,3280.0,3279.5,1.391]
[1737066752970,6.2078,3280.0,3279.8,0.60987]
[1737066753273,6.81764,3280.0,3279.8,0.60987]
[1737066753565,6.2078,3280.0,3279.8,0.60987]
[1737066754868,6.2078,3280.0,3279.5,1.391]
[1737066755067,3.2078,3279.6,3279.5,1.391]
[1737066755264,3.2078,3279.6,3279.1,1.391]
[1737066755464,0.61004,3279.0,3278.7,2.00108]
[1737066755875,0.61004,3279.0,3278.8,0.61006]
[1737066756469,0.61003,3279.1,3278.8,0.61007]
[1737066756661,0.61003,3279.0,3278.8,0.61007]
[1737066756867,0.61002,3279.1,3278.9,0.61004]
[1737066757166,0.60995,3279.5,3279.3,0.60996]
[1737066757366,0.60992,3279.6,3279.3,0.60996]
[1737066757569,0.60995,3279.5,3279.3,0.60996]
[1737066757973,0.60995,3279.4,3279.3,0.60996]
[1737066758370,7.55488884,3279.7,3279.1,1.391]
[1737066758677,3.2078,3279.7,3279.1,1.391]
[1737066758875,3.2078,3279.7,3279.6,0.60992]
[1737066760673,3.0,3280.0,3279.3,1.3968]
[1737066760864,3.0,3280.0,3279.9,0.60986]
[1737066761069,3.0,3280.0,3279.9,1.39]
[1737066761475,3.0,3280.0,3279.3,1.3968]
[1737066761476,0.60991,3279.7,3279.6,1.39]
[1737066761777,0.60987,3279.9,3279.6,1.99992]
[1737066762276,0.60986,3279.9,3279.6,1.39]
[1737066762471,0.60986,3279.9,3279.6,1.99991]
[1737066763172,0.60989,3279.8,3279.6,1.39]
[1737066763377,0.60987,3279.9,3279.6,1.99991]
[1737066763571,0.60989,3279.8,3279.6,1.39]
[1737066764277,0.60988,3279.9,3279.6,1.39]
[1737066764674,3.0,3280.0,3279.6,1.39]
[1737066764873,0.60986,3279.9,3279.6,1.39]
[1737066765074,0.60987,3279.9,3279.6,1.9999]
[1737066765375,0.60987,3279.9,3279.6,1.99991]
[1737066765676,3.0,3280.0,3279.7,0.6099]
[1737066765978,3.60985,3280.0,3279.7,0.6099]
[1737066766577,3.60985,3280.0,3279.6,1.39]
[1737066766578,3.0,3280.0,3279.6,1.39]
[1737066766772,3.0,3280.0,3279.9,0.60986]
[1737066769069,3.0,3280.0,3279.8,0.60987]
[1737066769476,3.0,3280.0,3279.9,0.60986]
[1737066769877,3.0,3280.0,3279.8,0.60987]
[1737066770871,3.0,3280.0,3279.3,1.3968]
[1737066770872,0.60989,3279.8,3279.5,0.60993]
[1737066771073,3.2078,3279.7,3279.4,1.355]
[1737066771281,3.81771,3279.7,3279.4,1.96495]
[1737066771483,3.2078,3279.7,3279.4,1.355]
[1737066771787,3.81771,3279.7,3279.4,1.96495]
[1737066772080,3.81771,3279.7,3279.4,1.96494]
[1737066772286,3.2078,3279.7,3279.4,1.355]
[1737066772473,0.60993,3279.6,3279.4,1.355]
[1737066772682,0.60994,3279.5,3279.4,1.355]
[1737066773282,3.2078,3279.7,3279.4,1.355]
[1737066773473,3.2078,3279.7,3278.8,1.52513]
[1737066773671,3.2078,3279.7,3278.9,1.355]
[1737066773878,0.60995,3279.5,3279.2,0.60998]
[1737066774185,0.60994,3279.5,3279.2,1.96497]
[1737066774478,3.2078,3279.7,3278.7,1.52518]
[1737066774685,2.32143833,3279.8,3278.7,0.61007]
[1737066774686,0.61003,3279.1,3278.7,0.61007]
[1737066774979,3.2078,3278.8,3277.9,7.12503029]
[1737066775281,3.2078,3278.4,3277.9,7.12503029]
[1737066775484,3.2078,3278.4,3278.1,0.61019]
[1737066776183,5.52923833,3278.4,3278.1,0.61019]
[1737066776374,0.61017,3278.3,3277.9,0.61022]
[1737066776574,5.52923833,3278.4,3278.0,1.355]
[1737066776776,0.6102,3278.1,3278.0,1.355]
[1737066777474,0.6102,3278.1,3277.6,1.3624]
[1737066777475,3.2078,3278.4,3277.4,44.0078]
[1737066777677,0.61023,3277.9,3277.5,1.355]
[1737066777881,3.2078,3278.0,3277.2,2.85758884]
[1737066778083,0.61027,3277.7,3277.2,2.85758884]
[1737066778281,3.2078,3277.6,3277.3,1.96535]
[1737066778587,3.8181,3277.6,3277.2,41.41036]
[1737066778786,3.8181,3277.6,3277.4,1.355]
[1737066778985,3.2078,3277.6,3277.4,1.355]
[1737066779189,3.8181,3277.6,3277.4,1.355]
[1737066779376,3.2078,3277.6,3276.9,40.8]
[1737066779576,0.61032,3277.5,3277.0,1.96539]
[1737066779777,3.8182,3277.1,3277.0,1.355]
[1737066779980,3.8182,3277.1,3276.8,1.355]
[1737066779981,0.61043,3276.9,3276.8,1.355]
[1737066780284,0.61046,3276.8,3276.3,1.355]
[1737066780480,1.52586,3277.4,3276.3,1.355]
[1737066780481,3.2078,3276.6,3276.3,1.355]
[1737066780985,0.61051,3276.4,3276.3,1.356]
[1737066781179,3.81828,3276.6,3276.3,1.356]
[1737066781385,3.2078,3276.6,3276.2,1.356]
[1737066781586,0.61053,3276.3,3276.2,1.356]
[1737066781780,3.2078,3276.6,3275.7,0.61064]
[1737066781979,3.2078,3276.6,3276.2,0.61054]
[1737066782182,3.2078,3276.6,3276.0,1.356]
[1737066782387,3.81829,3276.6,3276.0,1.96658]
[1737066782584,3.2078,3276.6,3275.5,1.4795]
[1737066782782,0.61051,3276.4,3275.9,0.6106]
[1737066783290,3.2078,3276.2,3275.6,1.356]
[1737066783490,3.2078,3276.2,3275.7,1.356]
[1737066783785,2.32143833,3277.1,3276.9,0.61041]
[1737066783975,2.32143833,3277.1,3276.2,1.52638]
[1737066783976,2.32143833,3277.1,3276.6,1.356]
[1737066784181,2.32143833,3277.1,3276.7,0.61046]
[1737066784389,2.32143833,3277.1,3276.8,40.8]
[1737066785090,3.81817,3277.2,3276.8,40.8]
[1737066785292,3.2078,3277.2,3277.1,0.61038]
[1737066786188,3.2078,3277.6,3277.5,0.61031]
[1737066786387,2.32143833,3278.2,3277.5,1.356]
[1737066786783,2.32143833,3278.2,3278.1,0.6102]
[1737066787091,2.32143833,3278.2,3278.0,0.61021]
[1737066787288,2.32143833,3278.2,3278.1,0.6102]
[1737066787683,4.6484,3278.7,3278.1,1.356]
[1737066787877,4.6484,3278.7,3278.2,2.85758884]
[1737066787878,3.2078,3278.7,3278.2,2.85758884]
[1737066788083,2.32143833,3279.0,3278.2,2.85758884]
[1737066788283,2.32143833,3279.0,3278.4,1.52536]
[1737066788581,2.32143833,3279.0,3278.9,0.61005]
[1737066788783,2.32143833,3279.0,3278.9,1.96605]
[1737066789293,6.13910833,3279.9,3279.4,0.60995]
[1737066789585,2.32143833,3279.9,3279.6,0.60991]
[1737066789786,2.32143833,3279.9,3279.8,0.60988]
[1737066789981,2.32143833,3279.9,3279.6,1.356]
[1737066790181,2.32143833,3279.9,3279.8,0.60988]
[1737066790784,3.0,3280.0,3279.9,0.60986]
[1737066791696,3.0,3280.0,3279.9,41.40986]
[1737066791897,2.32143833,3280.6,3280.5,0.60975]
[1737066792197,2.32143833,3280.6,3280.5,1.96575]
[1737066792493,5.52923833,3281.3,3280.5,1.356]
[1737066792891,3.2078,3281.3,3280.5,1.356]
[1737066793090,3.2078,3281.3,3280.6,0.60973]
[1737066793290,3.2078,3281.3,3280.7,0.6097]
[1737066793489,3.2078,3281.3,3280.5,1.356]
[1737066793889,3.2078,3281.3,3280.8,0.60969]
[1737066794190,3.2078,3281.3,3280.5,1.356]
[1737066794388,3.2078,3281.3,3280.9,0.60967]
[1737066794990,3.2078,3281.3,3280.5,1.356]
[1737066795187,3.2078,3281.3,3280.6,0.60973]
[1737066795388,1.3637,3281.5,3281.1,0.60962]